[Event "Kragero Resort Title 2024"]
[Site "Kragero"]
[Date "2024.02.25"]
[Round "9.38"]
[White "Elsness, Fredrik Valstad"]
[Black "Vingris, Mikelis"]
[Result "0-1"]
[ECO "B90"]
[WhiteElo "1783"]
[BlackElo "2256"]
[Annotator "RC"]
[PlyCount "145"]
[EventDate "2024.02.21"]
[EventType "swiss"]
[EventCountry "NOR"]
[SourceTitle "playchess.com"]
[Source "ChessBase"]
[SourceQuality "1"]
[TimeControl "5400+30"]

1. e4 c5 2. Nf3 d6 3. d4 cxd4 4. Nxd4 Nf6 5. Nc3 a6 6. h3 e5 7. Nf3 Be7 8. g4 h6 9. Rg1 b5 10. g5 hxg5 11. Nxg5 Bb7 12. a4 b4 13. Nd5 Nxd5 14. exd5 Nd7 15. Be3 Nf6 16. Bc4 Qa5 17. Qd3 Rh4 18. Nxf7 e4 19. Nxd6+ Bxd6 20. Qd4 Kf7 21. Bg5 Rh7 22. O-O-O Re8 23. Bxf6 gxf6 24. Rg4 f5 25. Rg2 Qd8 26. Rdg1 Qf6 27. Qa7 Re7 28. Kb1 Rh8 29. Qb6 Rd7 30. Qe3 Rf8 31. f3 Rc7 32. Bb3 Qe5 33. Qg5 Ke8 34. Re2 Re7 35. Rge1 Qf6 36. Qh5+ Qf7 37. Qh6 Kd7 38. fxe4 Rfe8 39. e5 Rxe5 40. Rxe5 Rxe5 41. Rxe5 Bxe5 42. Qb6 Bxd5 43. Qa7+ Bc7 44. Qd4 Kc6 45. Qxb4 Bxb3 46. cxb3 Qd5 47. Qc3+ Kb7 48. Qb4+ Ka7 49. Ka2 f4 50. Qe7 Qc6 51. Qf7 f3 52. h4 Kb6 53. h5 Be5 54. h6 Qf6 55. Qc4 f2 56. a5+ Kb7 57. h7 f1=Q 58. h8=Q Qxc4 59. Qxf6 Qxb3+ 60. Kxb3 Bxf6 61. Ka3 Kc6 62. b4 Kb5 63. Kb3 Be7 64. Ka3 Bxb4+ 65. Kb3 Kxa5 66. Kb2 Kb5 67. Kb3 a5 68. Kb2 Be7 69. Kb3 a4+ 70. Kb2 Kb4 71. Ka2 a3 72. Kb1 Kb3 {[%emt 2:00:35]} 73. Ka1 {[%emt 1:54:58]} 0-1

[Event "Kragero Resort Title 2024"]
[Site "Kragero"]
[Date "2024.02.25"]
[Round "9.39"]
[White "Roubert, Emile"]
[Black "Berget, Eirik"]
[Result "0-1"]
[ECO "C10"]
[WhiteElo "1989"]
[BlackElo "1960"]
[Annotator "NA RC"]
[PlyCount "54"]
[EventDate "2024.02.21"]
[EventType "swiss"]
[EventCountry "NOR"]
[SourceTitle "playchess.com"]
[Source "ChessBase"]
[SourceQuality "1"]
[TimeControl "5400+30"]

1. e4 e6 2. d4 d5 3. Nc3 c5 4. exd5 exd5 5. Nf3 Nf6 6. Bb5+ Nc6 7. Ne5 Bd7 8. Nxd7 Qxd7 9. O-O cxd4 10. Bxc6 bxc6 11. Qxd4 Be7 12. Bf4 O-O 13. Rfe1 Rfe8 14. Rad1 Qf5 15. Re2 Bf8 16. Bg3 Rxe2 17. Nxe2 Qxc2 18. Kf1 Re8 19. Qd2 Qc4 20. b3 Qa6 21. a4 Ne4 22. Qd3 Qb6 23. Nd4 Bc5 24. a5 Qxa5 25. Nxc6 Qa2 26. Nd4 Bxd4 27. Qxd4 {[%emt 1:32:49]} Nc3 {[%emt 1:24:39]} 0-1

[Event "Kragero Resort Title 2024"]
[Site "Kragero"]
[Date "2024.02.25"]
[Round "9.40"]
[White "Abramov, Artem"]
[Black "Tollefsen, Jacob"]
[Result "0-1"]
[ECO "B15"]
[WhiteElo "1931"]
[BlackElo "1909"]
[Annotator "NA"]
[PlyCount "76"]
[EventDate "2024.02.21"]
[EventType "swiss"]
[EventCountry "NOR"]
[SourceTitle "playchess.com"]
[Source "ChessBase"]
[SourceQuality "1"]
[TimeControl "5400+30"]

1. e4 c6 2. d4 d5 3. Nc3 dxe4 4. Nxe4 Nf6 5. Nxf6+ exf6 6. c3 Bd6 7. Bd3 O-O 8. Qc2 h6 9. Ne2 Qc7 10. Be3 Be6 11. c4 a5 12. a3 Re8 13. h3 Nd7 14. O-O Rad8 15. Rab1 Nf8 16. b4 axb4 17. axb4 Ra8 18. c5 Be7 19. Bf4 Qd7 20. Ra1 f5 21. Ra4 Ng6 22. Bh2 Bf6 23. Bd6 Be7 24. Bxe7 Nxe7 25. Rfa1 Rxa4 26. Rxa4 Nd5 27. Qb2 f4 28. Ra1 f3 29. gxf3 Bxh3 30. Qd2 Bf5 31. Kf1 Bxd3 32. Qxd3 Qh3+ 33. Kg1 g6 34. b5 Re7 35. bxc6 bxc6 36. Rb1 Kg7 37. Ra1 h5 38. Rd1 {[%emt 1:48:10]} h4 {[%emt 1:40:38]} 0-1

[Event "Kragero Resort Title 2024"]
[Site "Kragero"]
[Date "2024.02.25"]
[Round "9.41"]
[White "Valvag, Torbjorn"]
[Black "Hoiberg, Nina"]
[Result "1/2-1/2"]
[ECO "A41"]
[WhiteElo "1951"]
[BlackElo "2133"]
[Annotator "NA"]
[PlyCount "92"]
[EventDate "2024.02.21"]
[EventType "swiss"]
[EventCountry "NOR"]
[SourceTitle "playchess.com"]
[Source "ChessBase"]
[SourceQuality "1"]
[TimeControl "5400+30"]

1. d4 d6 2. Nf3 Bg4 3. e4 Nd7 4. Nc3 e5 5. h3 Bxf3 6. gxf3 g6 7. Be3 Bg7 8. Be2 Ne7 9. f4 Nc6 10. dxe5 dxe5 11. fxe5 Ndxe5 12. Qxd8+ Rxd8 13. f4 Nd7 14. O-O-O O-O 15. Nd5 Nf6 16. Nxf6+ Bxf6 17. e5 Be7 18. Bf3 a6 19. c3 Rxd1+ 20. Rxd1 Rd8 21. Bxc6 Rxd1+ 22. Kxd1 bxc6 23. Kc2 f5 24. Kb3 Kf7 25. Ka4 Ke6 26. Ka5 g5 27. fxg5 Kxe5 28. Kxa6 Ke4 29. Bg1 Bxg5 30. a4 Be3 31. Bh2 Bc1 32. a5 Bxb2 33. Kb7 Bxc3 34. a6 Bd4 35. Bxc7 f4 36. Bb6 Bxb6 37. Kxb6 f3 38. a7 f2 39. a8=Q f1=Q 40. Qxc6+ Ke5 41. Qe8+ Kd6 42. Qb8+ Ke6 43. Qe8+ Kd6 44. Qd8+ Ke6 45. Qc8+ Kd6 46. Qc7+ {[%emt 1:43:07]} Ke6 {[%emt 1:47:25]} 1/2-1/2